Department family,Entity,Date,Expense type,Expense area,Supplier,Transaction number, Amount ,Description,Supplier Postcode,Expenditure Type,Supplier Type,
HM Procurator General and Treasury Solicitor,Government Legal Department,01/08/2022,Accommodation: Rent,Corporate Resources Group,Ministry of Justice,240953,2759335.46,Payment for rent and/or service charge,SW1H 9AJ,Administration,Public Sector,
HM Procurator General and Treasury Solicitor,Government Legal Department,01/08/2022,Agency Staff: Legal,Litigation Division,Alexander Mann Solutions Limited,240961,54813.90,Payment for interim legal professionals,EC2N 3AQ,Administration,,
HM Procurator General and Treasury Solicitor,Government Legal Department,01/08/2022,Agency Staff: Legal,Litigation Division,Alexander Mann Solutions Limited,240963,35301.21,Payment for interim legal professionals,EC2N 3AQ,Administration,,
HM Procurator General and Treasury Solicitor,Government Legal Department,01/08/2022,Agency Staff: Legal,Litigation Division,Alexander Mann Solutions Limited,240965,57516.09,Payment for interim legal professionals,EC2N 3AQ,Administration,,
HM Procurator General and Treasury Solicitor,Government Legal Department,01/08/2022,Audit  Internal,Corporate Resources Group,HM Treasury,240969,44668.25,Payment for Government Internal Audit Agency Services,NR7 0HS,Administration,Public Sector,
HM Procurator General and Treasury Solicitor,Government Legal Department,05/08/2022,Maintenance: Software,Corporate Resources Group,Tikit Limited,241046,28363.83,Payment relating to IT software maintenance,B1 1RF,Administration,,
HM Procurator General and Treasury Solicitor,Government Legal Department,05/08/2022,Travel and Accommodation Contract,Corporate Resources Group,Corporate Travel Management (North) Limited,241047,30871.18,Payment relating to travel and accommodation,BD1 5HQ,Administration,,
HM Procurator General and Treasury Solicitor,Government Legal Department,05/08/2022,E-Disclosure Fees,Legal case disbursements,Anexsys Ltd,1006864,25436.27,Payment for e-disclosure services for legal case,EC1R 3BP,Administration,,
HM Procurator General and Treasury Solicitor,Government Legal Department,05/08/2022,Advisory External Legal Spend,Commercial Legal Group,Tlt Solicitors,241034,23732.00,Payment for professional services,BS1 6TP,Administration,,
HM Procurator General and Treasury Solicitor,Government Legal Department,10/08/2022,Maintenance: Software,Corporate Resources Group,Tikit Limited,241137,56727.66,Payment relating to IT software maintenance,B1 1RF,Administration,,
HM Procurator General and Treasury Solicitor,Government Legal Department,10/08/2022,Training: Legal Trainees,Corporate Resources Group,Csl Kpmg Llp Clearance Account,241160,63120.06,Payment for Training,E14 5GL,Administration,,
HM Procurator General and Treasury Solicitor,Government Legal Department,10/08/2022,Agency Staff: Legal,Litigation Division,Alexander Mann Solutions Limited,241175,52899.37,Payment for interim legal professionals,EC2N 3AQ,Administration,,
HM Procurator General and Treasury Solicitor,Government Legal Department,10/08/2022,Agency Staff: Legal,Litigation Division,Alexander Mann Solutions Limited,241181,36710.86,Payment for interim legal professionals,EC2N 3AQ,Administration,,
HM Procurator General and Treasury Solicitor,Government Legal Department,10/08/2022,Agency Staff: Legal,Litigation Division,Alexander Mann Solutions Limited,241183,59171.42,Payment for interim legal professionals,EC2N 3AQ,Administration,,
HM Procurator General and Treasury Solicitor,Government Legal Department,10/08/2022,Solicitor's Agents Fees,Legal case disbursements,Tlt Solicitors,1007716,22454.51,Payment for professional services for legal case,BS1 6TP,Administration,,
HM Procurator General and Treasury Solicitor,Government Legal Department,12/08/2022,Maintenance: Software,Corporate Resources Group,Tikit Limited,241260,28363.83,Payment relating to IT software maintenance,B1 1RF,Administration,,
HM Procurator General and Treasury Solicitor,Government Legal Department,12/08/2022,Maintenance: Software,Corporate Resources Group,Insight Direct (UK) Limited,241290,265500.00,Payment relating to IT software maintenance,S9 2BU,Administration,,
HM Procurator General and Treasury Solicitor,Government Legal Department,12/08/2022,Counsel Fees,Legal case disbursements,Counsel,1008115,33180.00,Payment of Counsel fees for legal cases,,Administration,,
HM Procurator General and Treasury Solicitor,Government Legal Department,12/08/2022,Network Services,Corporate Resources Group,Colt Technology Services,241264,23627.60,Payment relating to IT network services ,EC3A 7QN,Administration,,
HM Procurator General and Treasury Solicitor,Government Legal Department,12/08/2022,Advisory External Legal Spend,Legal Advisory Group,Pinsent Masons Llp,241313,23265.00,Payment for professional services,B4 6BH,Administration,,
HM Procurator General and Treasury Solicitor,Government Legal Department,12/08/2022,Advisory External Legal Spend,Legal Advisory Group,Pinsent Masons Llp,241327,22729.20,Payment for professional services,B4 6BH,Administration,,
HM Procurator General and Treasury Solicitor,Government Legal Department,16/08/2022,Ext Serv:Security Clearances,Corporate Resources Group,Cabinet Office,241270,58724.08,Payment relating to staff vetting process,FY5 3FW,Administration,Public Sector,
HM Procurator General and Treasury Solicitor,Government Legal Department,16/08/2022,Agency Staff: Legal,Litigation Division,Alexander Mann Solutions Limited,241391,27963.31,Payment for interim legal professionals,EC2N 3AQ,Administration,,
HM Procurator General and Treasury Solicitor,Government Legal Department,16/08/2022,Agency Staff: Legal,Litigation Division,Alexander Mann Solutions Limited,241393,66718.46,Payment for interim legal professionals,EC2N 3AQ,Administration,,
HM Procurator General and Treasury Solicitor,Government Legal Department,16/08/2022,Agency Staff: Legal,Litigation Division,Alexander Mann Solutions Limited,241395,57979.23,Payment for interim legal professionals,EC2N 3AQ,Administration,,
HM Procurator General and Treasury Solicitor,Attorney General's Office,16/08/2022,Accommodation: Service Charges,Attorney General's Office,Government Property Agency,30074,65500.00,Payment for rent and/or service charge,B2 2BH,Administration,Public Sector,
HM Procurator General and Treasury Solicitor,Attorney General's Office,16/08/2022,Accommodation: Rent,Attorney General's Office,Ministry of Justice,30102,246595.06,Payment for rent and/or service charge,SW1H 9AJ,Administration,Public Sector,
HM Procurator General and Treasury Solicitor,Government Legal Department,16/08/2022,Counsel Fees,Legal case disbursements,Counsel,1008603,26760.00,Payment of Counsel fees for legal cases,,Administration,,
HM Procurator General and Treasury Solicitor,Government Legal Department,16/08/2022,Counsel Fees,Legal case disbursements,Counsel,1008605,29000.00,Payment of Counsel fees for legal cases,,Administration,,
HM Procurator General and Treasury Solicitor,Government Legal Department,16/08/2022,Agency Staff: Admin,Litigation Division,Alexander Mann Solutions Limited,241394,21463.16,Payment for agency staff,EC2N 3AQ,Administration,,
HM Procurator General and Treasury Solicitor,Government Legal Department,18/08/2022,Counsel Fees,Legal case disbursements,Counsel,1008870,23220.00,Payment of Counsel fees for legal cases,,Administration,,
HM Procurator General and Treasury Solicitor,Government Legal Department,23/08/2022,Agency Staff: Legal,Litigation Division,Alexander Mann Solutions Limited,241587,36807.35,Payment for interim legal professionals,EC2N 3AQ,Administration,,
HM Procurator General and Treasury Solicitor,Government Legal Department,23/08/2022,Agency Staff: Legal,Litigation Division,Alexander Mann Solutions Limited,241589,44812.39,Payment for interim legal professionals,EC2N 3AQ,Administration,,
HM Procurator General and Treasury Solicitor,Government Legal Department,23/08/2022,Agency Staff: Legal,Litigation Division,Alexander Mann Solutions Limited,241591,44278.64,Payment for interim legal professionals,EC2N 3AQ,Administration,,
HM Procurator General and Treasury Solicitor,Government Legal Department,23/08/2022,Expert Report,Legal case disbursements,Frontier Economics Ltd,1009358,26305.00,Payment for professional services for legal case,WC1V 6DA,Administration,,
HM Procurator General and Treasury Solicitor,Government Legal Department,23/08/2022,E-Disclosure Fees,Legal case disbursements,Anexsys Ltd,1009464,25702.50,Payment for e-disclosure services for legal case,EC1R 3BP,Administration,,
HM Procurator General and Treasury Solicitor,Government Legal Department,26/08/2022,Advisory External Legal Spend,Legal Advisory Group,Slaughter & May,241673,25000.00,Payment for professional services,EC1Y 8YY,Administration,,
HM Procurator General and Treasury Solicitor,Government Legal Department,31/08/2022,Accommodation: Rent,Corporate Resources Group,Stiles Harold Williams Partnership Llp,241844,59128.25,Payment for rent and/or service charge,BN1 1GE,Administration,,
HM Procurator General and Treasury Solicitor,Government Legal Department,31/08/2022,Agency Staff: Legal,Litigation Division,Alexander Mann Solutions Limited,241858,47906.62,Payment for interim legal professionals,EC2N 3AQ,Administration,,
HM Procurator General and Treasury Solicitor,Government Legal Department,31/08/2022,Agency Staff: Legal,Litigation Division,Alexander Mann Solutions Limited,241863,47110.78,Payment for interim legal professionals,EC2N 3AQ,Administration,,
HM Procurator General and Treasury Solicitor,Government Legal Department,31/08/2022,Agency Staff: Legal,Litigation Division,Alexander Mann Solutions Limited,241865,40611.27,Payment for interim legal professionals,EC2N 3AQ,Administration,,
HM Procurator General and Treasury Solicitor,Government Legal Department,31/08/2022,E-Disclosure Fees,Legal case disbursements,Anexsys Ltd,1010121,28311.31,Payment for e-disclosure services for legal case,EC1R 3BP,Administration,,
NIL return for HM Crown Prosecution Inspectorate,,,,,,,,,,,
